fUST/lending_fUST_20251128
["ID","MTS","AMOUNT","RATE_DAILY","PERIOD"]
[394993487,1764279045523,-500.0,5e-05,2]
[394993488,1764279045533,-500.0,5e-05,2]
[394993489,1764279045542,-500.0,5e-05,2]
[394993490,1764279045552,-500.0,5e-05,2]
[394993491,1764279045562,-500.0,5e-05,2]
[394993492,1764279045571,-385.95962501,5e-05,2]
[394993527,1764279046167,-114.04037499,5e-05,2]
[394993529,1764279046176,-500.0,5e-05,2]
[394993531,1764279046186,-500.0,5e-05,2]
[394993533,1764279046195,-500.0,5e-05,2]
[394993535,1764279046204,-500.0,5e-05,2]
[394993537,1764279046213,-500.0,5e-05,2]
[394993539,1764279046222,-4724.8403141,5e-05,2]
[394993541,1764279046231,-499.99999999,5e-05,2]
[394993543,1764279046241,-500.0,5e-05,2]
[394993545,1764279046250,-500.0,5e-05,2]
[394993554,1764279046322,-500.0,5e-05,2]
[394993556,1764279046331,-500.0,5e-05,2]
[394993559,1764279046340,-500.0,5e-05,2]
[394993562,1764279046350,-500.0,5e-05,2]
[394993564,1764279046359,-500.0,5e-05,2]
[394993568,1764279046369,-500.0,5e-05,2]
[394993571,1764279046380,-368.55843103,5e-05,2]
[394993573,1764279046389,-500.0,5e-05,2]
[394993576,1764279046398,-500.0,5e-05,2]
[394993580,1764279046407,-500.0,5e-05,2]
[394993583,1764279046416,-500.0,5e-05,2]
[394993585,1764279046425,-504.61170921,5e-05,2]
[394993588,1764279046434,-500.0,5e-05,2]
[394993591,1764279046443,-500.0,5e-05,2]
[394993595,1764279046452,-500.0,5e-05,2]
[394993597,1764279046462,-500.0,5e-05,2]
[394993599,1764279046471,-500.0,5e-05,2]
[394993601,1764279046480,-500.0,5e-05,2]
[394993603,1764279046489,-500.0,5e-05,2]
[394993605,1764279046498,-500.0,5e-05,2]
[394993607,1764279046507,-500.0,5e-05,2]
[394993609,1764279046517,-500.0,5e-05,2]
[394993611,1764279046526,-454.6409393,5e-05,2]
[394993613,1764279046550,-45.3590607,5e-05,2]
[394993614,1764279046561,-500.0,5e-05,2]
[394993615,1764279046570,-62.8865593,5e-05,2]
[394993616,1764279050681,509.0,0.0001333,9]
[394993617,1764279126686,500.0,0.00027397,120]
[394993619,1764279257997,509.0,0.0001333,9]
[394993621,1764279456093,500.0,0.00027397,120]
[394993622,1764279491676,1000.0,0.0003,120]
[394993623,1764279500336,509.0,0.0001333,9]
[394993624,1764279517697,797.72002765,0.0003,120]
[394993625,1764279517718,3899.0,0.0003,120]
[394993626,1764279517739,3100.0,0.0003,120]
[394993627,1764279517760,500.0,0.0003,120]
[394993628,1764279518071,1703.27997235,0.0003,120]
[394993630,1764279745011,796.72002765,0.00030137,120]
[394993631,1764279745031,71.30797235,0.00030137,120]
[394993660,1764280220840,428.69202765,0.00030136,120]
[394993734,1764280238400,-150.0,4.9e-05,2]
[394993735,1764280238412,-500.0,4.973e-05,2]
[394993736,1764280238423,-501.96961443,4.973e-05,2]
[394993737,1764280238434,-414.40228081,4.973e-05,2]
[394993738,1764280238445,-166.79521352,4.973e-05,2]
[394993739,1764280238456,-300.0,4.999e-05,2]
[394993740,1764280238468,-1200.0,4.999e-05,2]
[394993741,1764280238479,-500.0,5e-05,2]
[394993742,1764280238490,-500.0,5e-05,2]
[394993743,1764280238500,-500.0,5e-05,2]
[394993744,1764280238511,-43.1209553,5e-05,2]
[394993745,1764280238556,-456.8790447,5e-05,2]
[394993746,1764280238568,-500.0,5e-05,2]
[394993747,1764280238578,-170.42825994,5e-05,2]
[394993748,1764280238589,-500.0,5e-05,2]
[394993749,1764280238600,-500.0,5e-05,2]
[394993750,1764280238611,-500.0,5e-05,2]
[394993751,1764280238622,-500.0,5e-05,2]
[394993752,1764280238633,-500.0,5e-05,2]
[394993753,1764280238643,-500.0,5e-05,2]
[394993754,1764280238654,-351.58930255,5e-05,2]
[394993755,1764280238665,-500.0,5e-05,2]
[394993756,1764280238676,-500.0,5e-05,2]
[394993757,1764280238687,-500.0,5e-05,2]
[394993758,1764280238699,-500.0,5e-05,2]
[394993759,1764280239446,-362.15362602,5e-05,2]
[394993760,1764280239482,-137.84637398,5e-05,2]
[394993761,1764280239505,-500.0,5e-05,2]
[394993762,1764280239524,-500.0,5e-05,2]
[394993763,1764280239537,-500.0,5e-05,2]
[394993764,1764280239547,-500.0,5e-05,2]
[394993765,1764280239558,-500.0,5e-05,2]
[394993766,1764280239568,-500.0,5e-05,2]
[394993767,1764280239578,-500.0,5e-05,2]
[394993768,1764280239588,-500.0,5e-05,2]
[394993769,1764280239598,-500.0,5e-05,2]
[394993770,1764280239607,-500.0,5e-05,2]
[394993771,1764280239617,-371.42501901,5e-05,2]
[394993772,1764280239627,-500.0,5e-05,2]
[394993773,1764280239637,-500.0,5e-05,2]
[394993774,1764280239647,-500.0,5e-05,2]
[394993775,1764280239657,-500.0,5e-05,2]
[394993776,1764280239667,-500.0,5e-05,2]
[394993777,1764280239676,-500.0,5e-05,2]
[394993778,1764280239686,-500.0,5e-05,2]
[394993779,1764280239696,-500.0,5e-05,2]
[394993780,1764280239706,-500.0,5e-05,2]
[394993781,1764280239716,-500.0,5e-05,2]
[394993782,1764280239725,-500.0,5e-05,2]
[394993783,1764280239735,-500.0,5e-05,2]
[394993784,1764280239745,-500.0,5e-05,2]
[394993785,1764280239755,-500.0,5e-05,2]
[394993786,1764280239765,-500.0,5e-05,2]
[394993787,1764280239775,-500.0,5e-05,2]
[394993788,1764280239784,-500.0,5e-05,2]
[394993789,1764280239794,-500.0,5e-05,2]
[394993790,1764280239804,-1289.4903237,5e-05,2]
[394993791,1764280239814,-222.29031702,5e-05,2]
[394993792,1764280239824,-500.0,5e-05,2]
[394993793,1764280239836,-1156.0,5e-05,2]
[394993794,1764280239845,-151.0,5e-05,2]
[394993795,1764280239856,-299.9847232,5e-05,2]
[394993796,1764280239866,-14314.5480691,5e-05,2]
[394993797,1764280239876,-151.0,5e-05,2]
[394993798,1764280239886,-151.0,5e-05,2]
[394993799,1764280239895,-187.23,5e-05,2]
[394993800,1764280239905,-300.0,5.099e-05,2]
[394993801,1764280239915,-300.0,5.099e-05,2]
[394993802,1764280239924,-300.0,5.099e-05,2]
[394993803,1764280239934,-300.0,5.099e-05,2]
[394993805,1764280239944,-300.0,5.099e-05,2]
[394993807,1764280239953,-300.0,5.099e-05,2]
[394993809,1764280239963,-300.0,5.099e-05,2]
[394993811,1764280239973,-300.0,5.099e-05,2]
[394993813,1764280239983,-300.0,5.099e-05,2]
[394993815,1764280239993,-300.0,5.099e-05,2]
[394993817,1764280240003,-300.0,5.099e-05,2]
[394993819,1764280240013,-300.0,5.099e-05,2]
[394993821,1764280240023,-300.0,5.099e-05,2]
[394993822,1764280240032,-300.0,5.099e-05,2]
[394993823,1764280240042,-300.0,5.099e-05,2]
[394993824,1764280240052,-151.0,5.099e-05,2]
[394993825,1764280240062,-500.5559859,5.137e-05,2]
[394993826,1764280240072,-1156.0,5.137e-05,2]
[394993827,1764280240082,-151.0,5.137e-05,2]
[394993828,1764280240092,-53.81725429,5.265e-05,2]
[394993993,1764280241851,-457.705,5.265e-05,2]
[394994069,1764280246449,-678.01350082,5.265e-05,2]
[394994070,1764280246460,-526.95475497,5.265e-05,2]
[394994071,1764280246470,-1156.0,5.274e-05,2]
[394994072,1764280246479,-198.0,5.274e-05,2]
[394994073,1764280246491,-187.23,5.274e-05,2]
[394994074,1764280246501,-1156.0,5.411e-05,2]
[394994075,1764280246511,-4408.41463776,5.442e-05,2]
[394994076,1764280246520,-420.0,5.499e-05,2]
[394994077,1764280246529,-1186.99128114,5.523e-05,2]
[394994078,1764280246541,-3221.42335662,5.523e-05,2]
[394994079,1764280246550,-1156.0,5.548e-05,2]
[394994080,1764280246560,-187.23397606,5.548e-05,2]
[394994081,1764280246568,-3194.0074031,5.644e-05,2]
[394994082,1764280246578,-1156.0,5.685e-05,2]
[394994083,1764280246587,-151.0,5.685e-05,2]
[394994084,1764280246595,-151.0,5.685e-05,2]
[394994085,1764280246604,-151.0,5.685e-05,2]
[394994086,1764280246613,-151.0,5.685e-05,2]
[394994087,1764280246622,-600.0,5.747e-05,2]
[394994088,1764280246632,-1793.68757715,5.75e-05,2]
[394994089,1764280246641,-712.6793833,5.788e-05,2]
[394994090,1764280246650,-1156.0,5.822e-05,2]
[394994091,1764280246659,-822.38,5.855e-05,2]
[394994092,1764280246669,-1793.68757715,5.873e-05,2]
[394994093,1764280246678,-4408.41463776,5.906e-05,2]
[394994094,1764280246688,-1156.0,5.959e-05,2]
[394994095,1764280246698,-176.22,5.96e-05,2]
[394994096,1764280246708,-176.22,5.966e-05,2]
[394994097,1764280246718,-1793.68757715,5.997e-05,2]
[394994098,1764280246730,-587.0,6.049e-05,2]
[394994099,1764280246742,-1156.0,6.096e-05,2]
[394994100,1764280246753,-1793.68757715,6.12e-05,2]
[394994101,1764280246764,-4408.41463776,6.198e-05,2]
[394994102,1764280246774,-151.0,6.213e-05,2]
[394994103,1764280246785,-1156.0,6.233e-05,2]
[394994104,1764280246795,-151.0,6.233e-05,2]
[394994105,1764280246805,-151.0,6.233e-05,2]
[394994106,1764280246815,-151.0,6.233e-05,2]
[394994107,1764280246830,-151.0,6.233e-05,2]
[394994108,1764280246840,-1793.68757715,6.244e-05,2]
[394994109,1764280246849,-720.0,6.321e-05,2]
[394994110,1764280246859,-151.0,6.35e-05,2]
[394994111,1764280246868,-1793.68757715,6.367e-05,2]
[394994112,1764280246878,-1156.0,6.37e-05,2]
[394994113,1764280246887,-151.0,6.487e-05,2]
[394994114,1764280246896,-1793.68757715,6.491e-05,2]
[394994115,1764280246906,-1156.0,6.507e-05,2]
[394994116,1764280246915,-4408.41463776,6.513e-05,2]
[394994117,1764280246924,-1793.68757715,6.614e-05,2]
[394994118,1764280246934,-292.0,6.624e-05,2]
[394994119,1764280246943,-1156.0,6.644e-05,2]
[394994120,1764280246951,-823.0,6.654e-05,2]
[394994121,1764280246960,-4408.41463778,6.665e-05,2]
[394994122,1764280246969,-764.38542528,6.671e-05,2]
[394994123,1764280246978,-1793.68757715,6.738e-05,2]
[394994124,1764280246987,-151.0,6.738e-05,2]
[394994125,1764280246998,-151.0,6.738e-05,2]
[394994126,1764280247008,-151.0,6.738e-05,2]
[394994127,1764280247017,-255.073455,6.738e-05,2]
[394994128,1764280247026,-1156.0,6.781e-05,2]
[394994129,1764280247038,-1795.48126473,6.861e-05,2]
[394994130,1764280247047,-177.0,6.9e-05,2]
[394994131,1764280247059,-1156.0,6.918e-05,2]
[394994132,1764280247069,-864.0,6.953e-05,2]
[394994133,1764280247079,-1156.0,7.055e-05,2]
[394994134,1764280247089,-1156.0,7.192e-05,2]
[394994135,1764280247098,-870.0,7.319e-05,2]
[394994136,1764280247108,-1156.0,7.329e-05,2]
[394994137,1764280247119,-1156.0,7.466e-05,2]
[394994138,1764280247128,-1156.0,7.603e-05,2]
[394994139,1764280247137,-1000.0,7.649e-05,2]
[394994140,1764280247146,-1156.0,7.74e-05,2]
[394994141,1764280247156,-1156.0,7.877e-05,2]
[394994142,1764280247165,-1156.0,8.014e-05,2]
[394994143,1764280247173,-1178.44731581,8.151e-05,2]
[394994144,1764280247182,-500.0,8.219e-05,2]
[394994145,1764280247191,-1000.0,8.414e-05,2]
[394994146,1764280247200,-244.0,8.414e-05,2]
[394994147,1764280247208,-2153.0,8.46e-05,2]
[394994148,1764280247217,-990.0,8.46e-05,2]
[394994149,1764280247227,-671.8,8.46e-05,2]
[394994150,1764280247236,-151.0,8.46e-05,2]
[394994151,1764280247246,-151.0,8.46e-05,2]
[394994152,1764280247255,-151.0,8.46e-05,2]
[394994153,1764280247264,-500.0,8.899e-05,2]
[394994154,1764280247273,-250.28766351,8.899e-05,2]
[394994155,1764280247283,-500.0,8.899e-05,2]
[394994156,1764280247291,-253.9234513,8.899e-05,2]
[394994157,1764280247300,-500.0,8.899e-05,2]
[394994158,1764280247309,-204.0,8.9e-05,2]
[394994159,1764280247319,-1000.0,9.255e-05,2]
[394994160,1764280247328,-492.0,9.255e-05,2]
[394994161,1764280247337,-500.0,9.973e-05,2]
[394994162,1764280247345,-500.0,9.973e-05,2]
[394994163,1764280247354,-501.20506811,9.973e-05,2]
[394994164,1764280247364,-500.19082328,9.973e-05,2]
[394994165,1764280247372,-500.0,9.973e-05,2]
[394994166,1764280247382,-500.0,9.973e-05,2]
[394994167,1764280247391,-500.0,9.973e-05,2]
[394994168,1764280247401,-500.0,9.973e-05,2]
[394994169,1764280247410,-500.0,9.973e-05,2]
[394994170,1764280247420,-500.0,9.973e-05,2]
[394994171,1764280247429,-500.0,9.973e-05,2]
[394994172,1764280247438,-500.0,9.973e-05,2]
[394994173,1764280247448,-500.0,9.973e-05,2]
[394994174,1764280247457,-528.37362186,9.973e-05,2]
[394994175,1764280247466,-151.0,0.0001,2]
[394994176,1764280247476,-151.0,0.0001,2]
[394994177,1764280247485,-50000.0,0.0001,2]
[394994178,1764280247495,-151.0,0.0001,2]
[394994179,1764280247505,-151.0,0.0001,2]
[394994180,1764280247514,-151.0,0.0001,2]
[394994181,1764280247523,-151.0,0.0001,2]
[394994182,1764280247533,-151.0,0.0001,2]
[394994183,1764280247542,-151.0,0.0001,2]
[394994184,1764280247551,-151.0,0.0001,2]
[394994185,1764280247560,-151.0,0.0001,2]
[394994186,1764280247569,-151.0,0.0001,2]
[394994187,1764280247578,-151.0,0.0001,2]
[394994188,1764280247587,-151.0,0.0001,2]
[394994189,1764280247596,-151.0,0.0001,2]
[394994190,1764280247605,-151.0,0.0001,2]
[394994191,1764280247614,-151.0,0.0001,2]
[394994192,1764280247623,-151.0,0.0001,2]
[394994193,1764280247632,-151.0,0.0001,2]
[394994194,1764280247641,-151.0,0.0001,2]
[394994195,1764280247650,-151.0,0.0001,2]
[394994196,1764280247660,-201.93286099,0.0001,2]
[394994197,1764280247668,-151.0,0.0001,2]
[394994198,1764280247677,-151.0,0.0001,2]
[394994199,1764280247686,-151.0,0.0001,2]
[394994200,1764280247695,-1000.0,0.00010181,2]
[394994201,1764280247704,-791.0,0.00010181,2]
[394994202,1764280247713,-1000.0,0.00010521,2]
[394994203,1764280247723,-209.40437684,0.00010548,2]
[394994204,1764280247732,-231.0,0.000109,2]
[394994205,1764280247741,-999.0,0.00010959,2]
[394994206,1764280247750,-565.32145266,0.00010959,2]
[394994207,1764280247759,-565.32145266,0.00010959,2]
[394994208,1764280247768,-565.32145266,0.00010959,2]
[394994209,1764280247778,-565.32145266,0.00010959,2]
[394994210,1764280247787,-565.32145266,0.00010959,2]
[394994211,1764280247795,-565.32145266,0.00010959,2]
[394994212,1764280247805,-565.32145266,0.00010959,2]
[394994213,1764280247814,-565.32145266,0.00010959,2]
[394994214,1764280247828,-565.32145266,0.00010959,2]
[394994215,1764280247837,-565.32145266,0.00010959,2]
[394994216,1764280247846,-565.32145266,0.00010959,2]
[394994217,1764280247855,-565.32145266,0.00010959,2]
[394994218,1764280247864,-565.32145266,0.00010959,2]
[394994219,1764280247873,-565.32145266,0.00010959,2]
[394994220,1764280247882,-565.32145266,0.00010959,2]
[394994221,1764280247892,-565.32145266,0.00010959,2]
[394994222,1764280247901,-565.32145266,0.00010959,2]
[394994223,1764280247910,-565.32145266,0.00010959,2]
[394994224,1764280247919,-565.32145266,0.00010959,2]
[394994225,1764280247928,-565.32145266,0.00010959,2]
[394994226,1764280247937,-565.32145266,0.00010959,2]
[394994227,1764280247947,-565.32145266,0.00010959,2]
[394994228,1764280247955,-565.32145266,0.00010959,2]
[394994229,1764280247965,-500.0,0.00010973,2]
[394994230,1764280247974,-500.0,0.00010973,2]
[394994231,1764280247983,-500.0,0.00010973,2]
[394994232,1764280247992,-301.0,0.00010973,2]
[394994233,1764280248001,-500.0,0.00010973,2]
[394994234,1764280248010,-151.0,0.00011,2]
[394994235,1764280248019,-151.0,0.00011,2]
[394994236,1764280248028,-151.0,0.00011,2]
[394994237,1764280248038,-1500.0,0.00011068,2]
[394994238,1764280248047,-217.15233878,0.00011096,2]
[394994239,1764280248056,-10000.0,0.00011099,2]
[394994240,1764280248065,-1000.0,0.00011199,2]
[394994241,1764280248075,-1000.0,0.00011199,2]
[394994242,1764280248083,-2153.0,0.0001146,2]
[394994243,1764280248093,-990.0,0.0001146,2]
[394994244,1764280248102,-630.0,0.0001146,2]
[394994245,1764280248111,-353.54508592,0.00011583,2]
[394994246,1764280248120,-160.0,0.00011583,2]
[394994247,1764280248130,-2000.0,0.00011616,2]
[394994248,1764280248140,-225.18697532,0.00011644,2]
[394994249,1764280248149,-151.0,0.000117,2]
[394994250,1764280248158,-151.0,0.000117,2]
[394994251,1764280248179,-151.0,0.000117,2]
[394994252,1764280248190,-433.2871216,0.0001196,2]
[394994253,1764280248200,-553.64373807,0.00012003,2]
[394994254,1764280248209,-201.932861,0.00012003,2]
[394994255,1764280248219,-500.0,0.00012003,2]
[394994256,1764280248229,-500.0,0.00012003,2]
[394994257,1764280248241,-201.93286098,0.00012003,2]
[394994258,1764280248265,-250.0,0.00012003,2]
[394994259,1764280248275,-2000.0,0.00012003,2]
[394994260,1764280248284,-151.0,0.00012003,2]
[394994261,1764280248293,-500.0,0.00012003,2]
[394994262,1764280248304,-2500.0,0.00012164,2]
[394994263,1764280248314,-233.51889341,0.00012192,2]
[394994264,1764280248323,-1000.0,0.00012319,2]
[394994265,1764280248333,-1000.0,0.00012319,2]
[394994266,1764280248343,-579.0,0.00012319,2]
[394994267,1764280248352,-190.73,0.00012329,2]
[394994268,1764280248362,-158.94,0.00012329,2]
[394994269,1764280248371,-794.75,0.00012329,2]
[394994270,1764280248381,-151.0,0.000124,2]
[394994271,1764280248390,-151.0,0.000124,2]
[394994272,1764280248400,-151.0,0.000124,2]
[394994273,1764280248409,-764.38542528,0.00012442,2]
[394994274,1764280248418,-9766.88588787,0.000125,2]
[394994275,1764280248428,-266.54665944,0.00012589,2]
[394994276,1764280248437,-1065.12045111,0.00012589,2]
[394994277,1764280248447,-2500.0,0.00012712,2]
[394994278,1764280248456,-242.15909246,0.0001274,2]
[394994279,1764280248467,-501.21374483,0.00012837,2]
[394994280,1764280248477,-258.0,0.000129,2]
[394994281,1764280248486,-151.0,0.000131,2]
[394994282,1764280248496,-151.0,0.000131,2]
[394994283,1764280248505,-151.0,0.000131,2]
[394994284,1764280248515,-431.79421565,0.00013252,2]
[394994285,1764280248524,-1725.44968574,0.00013252,2]
[394994286,1764280248533,-251.11897888,0.00013288,2]
[394994287,1764280248543,-170.22639091,0.00013542,2]
[394994288,1764280248552,-1532.03751822,0.00013542,2]
[394994289,1764280248561,-2723.62225461,0.00013542,2]
[394994290,1764280248571,-4255.65977282,0.00013542,2]
[394994291,1764280248580,-1000.0,0.0001355,2]
[394994292,1764280248590,-1000.0,0.0001355,2]
[394994293,1764280248599,-1000.0,0.0001355,2]
[394994294,1764280248609,-500.0,0.00013698,2]
[394994295,1764280248618,-1000.0,0.00013698,2]
[394994296,1764280248627,-3150.0,0.00013699,2]
[394994297,1764280248637,-1000.0,0.00013699,2]
[394994298,1764280248646,-971.132071,0.00013699,2]
[394994299,1764280248655,-750.0,0.00013699,2]
[394994300,1764280248664,-151.0,0.00013699,2]
[394994301,1764280248673,-151.0,0.00013699,2]
[394994302,1764280248683,-151.0,0.00013699,2]
[394994303,1764280248698,-151.0,0.00013699,2]
[394994304,1764280248708,-151.0,0.00013699,2]
[394994305,1764280248718,-230.696439,0.00013699,2]
[394994306,1764280248955,-280.9325,0.00013699,2]
[394994307,1764280248965,-151.0,0.000138,2]
[394994308,1764280248974,-151.0,0.000138,2]
[394994309,1764280248983,-151.0,0.000138,2]
[394994310,1764280248993,-260.4103811,0.00013836,2]
[394994311,1764280249002,-389.75105714,0.00014106,2]
[394994312,1764280249011,-1559.00422857,0.00014106,2]
[394994313,1764280249020,-3507.75951428,0.00014106,2]
[394994314,1764280249029,-608.98602678,0.00014265,2]
[394994315,1764280249038,-1096.17484821,0.00014265,2]
[394994316,1764280249047,-1948.75528571,0.00014265,2]
[394994317,1764280249056,-3044.93013392,0.00014265,2]
[394994318,1764280249066,-4384.69939285,0.00014265,2]
[394994319,1764280249076,-5968.06306249,0.00014265,2]
[394994320,1764280249085,-7795.02114285,0.00014265,2]
[394994321,1764280249094,-6229.78089736,0.00014311,2]
[394994322,1764280249103,-270.0455652,0.00014384,2]
[394994323,1764280249113,-6128.15007286,0.000144,2]
[394994324,1764280249122,-2153.0,0.0001446,2]
[394994325,1764280249136,-398.656,0.0001446,2]
[394994326,1764280249145,-630.0,0.0001446,2]
[394994327,1764280249155,-151.0,0.000145,2]
[394994328,1764280249164,-151.0,0.000145,2]
[394994329,1764280249174,-151.0,0.000145,2]
[394994330,1764280249184,-285.0,0.000149,2]
[394994331,1764280249193,-1000.0,0.00014905,2]
[394994332,1764280249203,-1000.0,0.00014905,2]
[394994333,1764280249213,-1000.0,0.00014905,2]
[394994334,1764280249222,-715.0,0.00014905,2]
[394994335,1764280249232,-280.03725112,0.00014932,2]
[394994336,1764280249242,-389.55654844,0.00015016,2]
[394994337,1764280249251,-701.20178718,0.00015016,2]
[394994338,1764280249261,-1246.58095499,0.00015016,2]
[394994339,1764280249271,-1947.78274218,0.00015016,2]
[394994340,1764280249280,-2804.80714873,0.00015016,2]
[394994341,1764280249290,-3817.65417466,0.00015016,2]
[394994342,1764280249299,-4986.32381997,0.00015016,2]
[394994343,1764280249309,-6310.81608465,0.00015016,2]
[394994344,1764280249318,-7791.1309687,0.00015016,2]
[394994345,1764280249328,-9427.26847213,0.00015016,2]
[394994346,1764280249337,-11219.22859493,0.00015016,2]
[394994347,1764280249347,-8332.75206157,0.00015064,2]
[394994348,1764280249356,-189.216708,0.00015068,2]
[394994349,1764280249366,-151.0,0.000152,2]
[394994350,1764280249376,-151.0,0.000152,2]
[394994351,1764280249386,-151.0,0.000152,2]
[394994352,1764280249396,-290.39862941,0.0001548,2]
[394994353,1764280249406,-151.0,0.000159,2]
[394994354,1764280249416,-151.0,0.000159,2]
[394994355,1764280249426,-151.0,0.000159,2]
[394994356,1764280249436,-301.1433787,0.00016028,2]
[394994357,1764280249446,-1000.0,0.00016396,2]
[394994358,1764280249458,-1000.0,0.00016396,2]
[394994359,1764280249470,-1000.0,0.00016396,2]
[394994360,1764280249480,-151.0,0.000166,2]
[394994361,1764280249491,-66.2103684,0.000166,2]
[394994437,1764281438295,-150.0,4.955e-05,2]
[394994438,1764281438306,-137.48678427,4.997e-05,2]
[394994439,1764281438318,-162.51321573,4.997e-05,2]
[394994440,1764281438327,-300.0,4.997e-05,2]
[394994441,1764281438336,-244.43984433,4.997e-05,2]
[394994442,1764281438348,-55.56015567,4.997e-05,2]
[394994443,1764281438357,-300.0,4.997e-05,2]
[394994444,1764281438366,-25.62549935,4.997e-05,2]
[394994490,1764281440496,-274.37450065,4.997e-05,2]
[394994492,1764281440505,-300.0,4.997e-05,2]
[394994494,1764281440515,-300.0,4.997e-05,2]
[394994496,1764281440524,-300.0,4.997e-05,2]
[394994498,1764281440534,-300.0,4.997e-05,2]
[394994500,1764281440544,-300.0,4.997e-05,2]
[394994502,1764281440554,-300.0,4.997e-05,2]
[394994504,1764281440563,-300.0,4.997e-05,2]
[394994506,1764281440572,-300.0,4.997e-05,2]
[394994508,1764281440581,-300.0,4.997e-05,2]
[394994510,1764281440591,-300.0,4.997e-05,2]
[394994512,1764281440600,-600.0,4.997e-05,2]
[394994514,1764281440610,-250.0,5.394e-05,2]
[394994516,1764281440619,-720.0,5.497e-05,2]
[394994518,1764281440628,-864.0,6.046e-05,2]
[394994520,1764281440638,-1000.0,6.651e-05,2]
[394994522,1764281440647,-177.0,6.955e-05,2]
[394994523,1764281440656,-1000.0,7.316e-05,2]
[394994525,1764281440665,-244.0,7.316e-05,2]
[394994527,1764281440675,-1000.0,8.048e-05,2]
[394994530,1764281440684,-492.0,8.048e-05,2]
[394994531,1764281440693,-150.0,8.486e-05,2]
[394994533,1764281440703,-1000.0,8.852e-05,2]
[394994535,1764281440712,-791.0,8.852e-05,2]
[394994537,1764281440721,-204.0,8.955e-05,2]
[394994540,1764281440731,-458.9980868,9.104e-05,2]
[394994542,1764281440740,-536.44308473,9.419e-05,2]
[394994544,1764281440749,-2153.0,9.62e-05,2]
[394994546,1764281440758,-630.0,9.62e-05,2]
[394994548,1764281440768,-1000.0,9.738e-05,2]
[394994550,1764281440777,-1000.0,9.738e-05,2]
[394994552,1764281440786,-650.17658917,9.999e-05,2]
[394994554,1764281440795,-185.60313999,9.999e-05,2]
[394994556,1764281440804,-500.0,9.999e-05,2]
[394994558,1764281440813,-500.0,9.999e-05,2]
[394994560,1764281440823,-500.0,9.999e-05,2]
[394994562,1764281440832,-243.20816797,9.999e-05,2]
[394994837,1764281444810,-204.16007355,9.107e-05,2]
[394994838,1764281444820,-248.83992645,9.999e-05,2]
[394994839,1764281444833,-45.09440748,9.999e-05,2]
[394994840,1764281444842,-185.93190797,0.0001,2]
[394994841,1764281444851,-1641.39159481,0.0001,2]
[394994842,1764281444863,-392.58800804,0.0001,2]
[394994919,1764282632634,-633.7735273,6.148e-05,2]
[394994920,1764282632719,-633.7735273,6.21e-05,2]
[394994921,1764282632731,-205.0,6.273e-05,2]
[394994922,1764282632741,-150.0,6.433e-05,2]
[394994923,1764282632750,-250.0,8.289e-05,2]
[394994924,1764282632759,-177.0,8.433e-05,2]
[394994925,1764282632770,-431.79421565,8.792e-05,2]
[394994926,1764282632779,-300.0,9.897e-05,2]
[394994927,1764282632788,-300.0,9.897e-05,2]
[394994928,1764282632797,-1200.0,9.897e-05,2]
[394994929,1764282632809,-330.06236716,9.898e-05,2]
[394994930,1764282632818,-500.0,9.898e-05,2]
[394994931,1764282632827,-500.0,9.898e-05,2]